Workbook

Sheet Лист1
A1: радиус | B1: 40
A2: x_start | B2: 75
A3: y_start | B3: 60
B5: φ | C5: r | D5: x | E5: y | Q5: =B2-B1 -> 35 | R5: =SQRT($B$1^2-(Q5-$B$2)^2)+$B$3 -> 60 | S5: =-SQRT($B$1^2-(Q5-$B$2)^2)+$B$3 -> 60
B6: =RANDBETWEEN(0,36000)% -> 240.29 | C6: =RANDBETWEEN(0,$B$1) -> 9 | D6: =$B$2+C6*COS(B6) -> 75.37643216 | E6: =$B$3+C6*SIN(B6) -> 68.99212427 | Q6: =Q5+2*$B$1% -> 35.8 | R6: =SQRT($B$1^2-(Q6-$B$2)^2)+$B$3 -> 67.9598995 | S6: =-SQRT($B$1^2-(Q6-$B$2)^2)+$B$3 -> 52.0401005
B7: =RANDBETWEEN(0,36000)% -> 166.13 | C7: =RANDBETWEEN(0,$B$1) -> 39 | D7: =$B$2+C7*COS(B7) -> 38.70179026 | E7: =$B$3+C7*SIN(B7) -> 74.26323841 | Q7: =Q6+2*$B$1% -> 36.6 | R7: 71.2 | S7: 48.8
B8: 211.28 | C8: 33 | D8: 51.85040517 | E8: 36.48200138 | Q8: 37.4 | R8: 73.64697769 | S8: 46.35302231
B9: 217.47 | C9: 6 | D9: 70.41136011 | E9: 56.13420332 | Q9: 38.2 | R9: 75.67673435 | S9: 44.32326565
B10: 221.06 | C10: 15 | D10: 81.14764695 | E10: 73.68234033 | Q10: 39 | R10: 77.43559577 | S10: 42.56440423
B11: 159.36 | C11: 10 | D11: 68.48491631 | E11: 67.58641447 | Q11: 39.8 | R11: 78.99894734 | S11: 41.00105266
B12: 177 | C12: 6 | D12: 77.87647387 | E12: 65.26553873 | Q12: 40.6 | R12: 80.41176132 | S12: 39.58823868
B13: 357.28 | C13: 7 | D13: 79.55876775 | E13: 54.68797246 | Q13: 41.4 | R13: 81.70345595 | S13: 38.29654405
B14: 43.54 | C14: 29 | D14: 101.2093541 | E14: 47.58751599 | Q14: 42.2 | R14: 82.89454083 | S14: 37.10545917
B15: 187.54 | C15: 17 | D15: 84.81158693 | E15: 46.11717745 | Q15: 43 | R15: 84 | S15: 36
B16: 344.11 | C16: 37 | D16: 78.90010535 | E16: 23.20612581 | Q16: 43.8 | R16: 85.03118056 | S16: 34.96881944
B17: 30.14 | C17: 15 | D17: 79.35922895 | E17: 45.64740013 | Q17: 44.6 | R17: 85.99692289 | S17: 34.00307711
B18: 354.46 | C18: 10 | D18: 66.42275821 | E18: 65.14110136 | Q18: 45.4 | R18: 86.90427475 | S18: 33.09572525
B19: 210.42 | C19: 20 | D19: 55.04448279 | E19: 61.33316655 | Q19: 46.2 | R19: 87.75896252 | S19: 32.24103748
B20: 307.63 | C20: 21 | D20: 95.3673705 | E20: 54.88431638 | Q20: 47 | R20: 88.56571371 | S20: 31.43428629
B21: 8.08 | C21: 18 | D21: 70.96621902 | E21: 77.54219516 | Q21: 47.8 | R21: 89.32848445 | S21: 30.67151555
B22: 18.88 | C22: 13 | D22: 87.99397599 | E22: 60.39571189 | Q22: 48.6 | R22: 90.05062395 | S22: 29.94937605
B23: 345.35 | C23: 29 | D23: 103.267787 | E23: 53.52449094 | Q23: 49.4 | R23: 90.73499634 | S23: 29.26500366
B24: 267.7 | C24: 7 | D24: 69.48996071 | E24: 55.68265509 | Q24: 50.2 | R24: 91.38407239 | S24: 28.61592761
B25: 88.26 | C25: 37 | D25: 110.3973121 | E25: 70.77173601 | Q25: 51 | R25: 92 | S25: 28
B26: 61.09 | C26: 23 | D26: 71.08485338 | E26: 37.33567502 | Q26: 51.8 | R26: 92.58465897 | S26: 27.41534103
B27: 200.19 | C27: 18 | D27: 86.58030581 | E27: 46.21970547 | Q27: 52.6 | R27: 93.13970428 | S27: 26.86029572
B28: 124.93 | C28: 14 | D28: 85.39776886 | E28: 50.62522519 | Q28: 53.4 | R28: 93.66660066 | S28: 26.33339934
B29: 243.21 | C29: 36 | D29: 65.62580227 | E29: 25.24191581 | Q29: 54.2 | R29: 94.16665041 | S29: 25.83334959
B30: 53.77 | C30: 32 | D30: 45.08440132 | E30: 48.63967626 | Q30: 55 | R30: 94.64101615 | S30: 25.35898385
B31: 210.81 | C31: 21 | D31: 55.08791221 | E31: 53.32851143 | Q31: 55.8 | R31: 95.09073952 | S31: 24.90926048
B32: 87 | C32: 39 | D32: 97.22026304 | E32: 27.94910437 | Q32: 56.6 | R32: 95.51675661 | S32: 24.48324339
B33: 313.57 | C33: 27 | D33: 97.44642787 | E33: 44.9947384 | Q33: 57.4 | R33: 95.91991091 | S33: 24.08008909
B34: 82.3 | C34: 22 | D34: 92.92331911 | E34: 72.75753237 | Q34: 58.2 | R34: 96.30096417 | S34: 23.69903583
B35: 142.91 | C35: 26 | D35: 74.15603908 | E35: 34.01370111 | Q35: 59 | R35: 96.66060556 | S35: 23.33939444
B36: 33.51 | C36: 13 | D36: 68.50362145 | E36: 71.26042032 | Q36: 59.8 | R36: 96.99945946 | S36: 23.00054054
B37: 22.88 | C37: 7 | D37: 70.58787104 | E37: 54.56556184 | Q37: 60.6 | R37: 97.31809213 | S37: 22.68190787
B38: 274.76 | C38: 4 | D38: 74.48401308 | E38: 56.03341992 | Q38: 61.4 | R38: 97.61701743 | S38: 22.38298257
B39: 193.23 | C39: 14 | D39: 75.30870024 | E39: 46.00340384 | Q39: 62.2 | R39: 97.8967017 | S39: 22.1032983
B40: 238.14 | C40: 2 | D40: 76.62654553 | E40: 58.83623472 | Q40: 63 | R40: 98.15756806 | S40: 21.84243194
B41: 251.92 | C41: 11 | D41: 84.12448016 | E41: 66.14360333 | Q41: 63.8 | R41: 98.4 | S41: 21.6
B42: 37.15 | C42: 19 | D42: 91.20677987 | E42: 50.0833329 | Q42: 64.6 | R42: 98.62434465 | S42: 21.37565535
B43: 138.63 | C43: 2 | D43: 76.84218176 | E43: 60.77869528 | Q43: 65.4 | R43: 98.83091552 | S43: 21.16908448
B44: 125.56 | C44: 32 | D44: 106.8280747 | E44: 56.68734877 | Q44: 66.2 | R44: 99.01999487 | S44: 20.98000513
B45: 346.21 | C45: 26 | D45: 95.93482324 | E45: 75.41859837 | Q45: 67 | R45: 99.19183588 | S45: 20.80816412
B46: 296.81 | C46: 36 | D46: 77.5361051 | E46: 95.91055793 | Q46: 67.8 | R46: 99.34666441 | S46: 20.65333559
B47: 93.76 | C47: 14 | D47: 87.3672592 | E47: 53.43868154 | Q47: 68.6 | R47: 99.48468057 | S47: 20.51531943
B48: 170.19 | C48: 35 | D48: 104.9476445 | E48: 78.114596 | Q48: 69.4 | R48: 99.60606014 | S48: 20.39393986
B49: 220.31 | C49: 10 | D49: 84.21638556 | E49: 63.88049445 | Q49: 70.2 | R49: 99.71095567 | S49: 20.28904433
B50: 215.31 | C50: 9 | D50: 74.00391577 | E50: 68.94470884 | Q50: 71 | R50: 99.79949748 | S50: 20.20050252
B51: 254.58 | C51: 20 | D51: 55.1230726 | E51: 57.78465417 | Q51: 71.8 | R51: 99.87179454 | S51: 20.12820546
B52: 149.5 | C52: 32 | D52: 83.6694495 | E52: 29.19674294 | Q52: 72.6 | R52: 99.92793508 | S52: 20.07206492
B53: 35.03 | C53: 32 | D53: 46.50585534 | E53: 45.43690555 | Q53: 73.4 | R53: 99.96798719 | S53: 20.03201281
B54: 147.78 | C54: 38 | D54: 37.29717733 | E54: 55.25688257 | Q54: 74.2 | R54: 99.9919992 | S54: 20.0080008
B55: 66.14 | C55: 40 | D55: 35.55352517 | E55: 53.36858812 | Q55: 75 | R55: 100 | S55: 20
B56: 104.26 | C56: 30 | D56: 50.02917326 | E56: 43.37297946 | Q56: 75.8 | R56: 99.9919992 | S56: 20.0080008
B57: 21.2 | C57: 15 | D57: 64.45456564 | E57: 70.66741834 | Q57: 76.6 | R57: 99.96798719 | S57: 20.03201281
B58: 96.05 | C58: 17 | D58: 71.10081444 | E58: 76.5467928 | Q58: 77.4 | R58: 99.92793508 | S58: 20.07206492
B59: 294.1 | C59: 8 | D59: 77.82632993 | E59: 52.5158929 | Q59: 78.2 | R59: 99.87179454 | S59: 20.12820546
B60: 166.8 | C60: 16 | D60: 59.69390999 | E60: 55.3391408 | Q60: 79 | R60: 99.79949748 | S60: 20.20050252
B61: 223.52 | C61: 40 | D61: 39.28167085 | E61: 41.99441857 | Q61: 79.8 | R61: 99.71095567 | S61: 20.28904433
B62: 201.07 | C62: 35 | D62: 109.9988603 | E62: 60.28245289 | Q62: 80.6 | R62: 99.60606014 | S62: 20.39393986
B63: 13.63 | C63: 27 | D63: 88.11397437 | E63: 83.60134903 | Q63: 81.4 | R63: 99.48468057 | S63: 20.51531943
B64: 240.77 | C64: 36 | D64: 59.72607072 | E64: 92.5991884 | Q64: 82.2 | R64: 99.34666441 | S64: 20.65333559
B65: 283.32 | C65: 37 | D65: 106.0166463 | E65: 80.1734392 | Q65: 83 | R65: 99.19183588 | S65: 20.80816412
B66: 27 | C66: 18 | D66: 69.74150144 | E66: 77.21476671 | Q66: 83.8 | R66: 99.01999487 | S66: 20.98000513
B67: 288.28 | C67: 19 | D67: 88.9470209 | E67: 47.09726355 | Q67: 84.6 | R67: 98.83091552 | S67: 21.16908448
B68: 209.43 | C68: 24 | D68: 63.1982063 | E68: 80.89779092 | Q68: 85.4 | R68: 98.62434465 | S68: 21.37565535
B69: 67.07 | C69: 11 | D69: 69.97669294 | E69: 50.21396985 | Q69: 86.2 | R69: 98.4 | S69: 21.6
B70: 83.39 | C70: 17 | D70: 72.66489643 | E70: 76.83886253 | Q70: 87 | R70: =SQRT($B$1^2-(Q70-$B$2)^2)+$B$3 -> 98.15756806 | S70: =-SQRT($B$1^2-(Q70-$B$2)^2)+$B$3 -> 21.84243194
B71: =RANDBETWEEN(0,36000)% -> 68.4 | C71: =RANDBETWEEN(0,$B$1) -> 27 | D71: =$B$2+C71*COS(B71) -> 95.38683813 | E71: =$B$3+C71*SIN(B71) -> 42.29754731 | Q71: =Q70+2*$B$1% -> 87.8 | R71: 97.8967017 | S71: 22.1032983
B72: 8.66 | C72: 31 | D72: 52.63238059 | E72: 81.463681 | Q72: 88.6 | R72: 97.61701743 | S72: 22.38298257
B73: 237.22 | C73: 14 | D73: 75.41650369 | E73: 46.00619692 | Q73: 89.4 | R73: 97.31809213 | S73: 22.68190787
B74: 271.95 | C74: 31 | D74: 68.77334817 | E74: 90.36822035 | Q74: 90.2 | R74: 96.99945946 | S74: 23.00054054
B75: 216.34 | C75: 31 | D75: 46.82068042 | E75: 72.91998251 | Q75: 91 | R75: 96.66060556 | S75: 23.33939444
B76: 125.18 | C76: 0 | D76: 75 | E76: 60 | Q76: 91.8 | R76: 96.30096417 | S76: 23.69903583
B77: 72.08 | C77: 18 | D77: 57.28005744 | E77: 63.16285247 | Q77: 92.6 | R77: 95.91991091 | S77: 24.08008909
B78: 240.81 | C78: 10 | D78: 70.398519 | E78: 68.87842174 | Q78: 93.4 | R78: 95.51675661 | S78: 24.48324339
B79: 188.72 | C79: 29 | D79: 103.2726429 | E79: 66.45427501 | Q79: 94.2 | R79: 95.09073952 | S79: 24.90926048
B80: 359.17 | C80: 37 | D80: 94.09783688 | E80: 91.69026075 | Q80: 95 | R80: 94.64101615 | S80: 25.35898385
B81: 188.23 | C81: 24 | D81: 98.15870127 | E81: 53.70122588 | Q81: 95.8 | R81: 94.16665041 | S81: 25.83334959
B82: 279.98 | C82: 7 | D82: 68.49482363 | E82: 57.41491191 | Q82: 96.6 | R82: 93.66660066 | S82: 26.33339934
B83: 351.55 | C83: 25 | D83: 98.82068411 | E83: 52.41218024 | Q83: 97.4 | R83: 93.13970428 | S83: 26.86029572
B84: 305.18 | C84: 10 | D84: 65.97610107 | E84: 55.69079496 | Q84: 98.2 | R84: 92.58465897 | S84: 27.41534103
B85: 264.51 | C85: 36 | D85: 104.3785426 | E85: 80.80627878 | Q85: 99 | R85: 92 | S85: 28
B86: 184.32 | C86: 14 | D86: 67.84020016 | E86: 72.03068021 | Q86: 99.8 | R86: 91.38407239 | S86: 28.61592761
B87: 191.09 | C87: 23 | D87: 55.35777589 | E87: 71.96591125 | Q87: 100.6 | R87: 90.73499634 | S87: 29.26500366
B88: 263.28 | C88: 23 | D88: 93.80192631 | E88: 46.75282797 | Q88: 101.4 | R88: 90.05062395 | S88: 29.94937605
B89: 267.88 | C89: 23 | D89: 59.72772078 | E89: 42.80239879 | Q89: 102.2 | R89: 89.32848445 | S89: 30.67151555
B90: 99.05 | C90: 27 | D90: 77.42218734 | E90: 33.10886747 | Q90: 103 | R90: 88.56571371 | S90: 31.43428629
B91: 97.36 | C91: 7 | D91: 68.00301934 | E91: 60.20557627 | Q91: 103.8 | R91: 87.75896252 | S91: 32.24103748
B92: 1.14 | C92: 8 | D92: 78.34075603 | E92: 67.26906797 | Q92: 104.6 | R92: 86.90427475 | S92: 33.09572525
B93: 338.08 | C93: 29 | D93: 85.18309759 | E93: 32.84664803 | Q93: 105.4 | R93: 85.99692289 | S93: 34.00307711
B94: 308.71 | C94: 11 | D94: 82.39175723 | E94: 68.1462829 | Q94: 106.2 | R94: 85.03118056 | S94: 34.96881944
B95: 22.52 | C95: 4 | D95: 71.54645142 | E95: 57.98183196 | Q95: 107 | R95: 84 | S95: 36
B96: 254.03 | C96: 6 | D96: 69.5689497 | E96: 62.55023384 | Q96: 107.8 | R96: 82.89454083 | S96: 37.10545917
B97: 58.27 | C97: 15 | D97: 72.75047997 | E97: 74.83036276 | Q97: 108.6 | R97: 81.70345595 | S97: 38.29654405
B98: 107.78 | C98: 17 | D98: 84.6682079 | E98: 73.98305246 | Q98: 109.4 | R98: 80.41176132 | S98: 39.58823868
B99: 304.4 | C99: 7 | D99: 68.38794901 | E99: 62.29799514 | Q99: 110.2 | R99: 78.99894734 | S99: 41.00105266
B100: 321.67 | C100: 11 | D100: 78.70201091 | E100: 70.35833554 | Q100: 111 | R100: 77.43559577 | S100: 42.56440423
B101: 248.91 | C101: 30 | D101: 52.52871904 | E101: 40.12434826 | Q101: 111.8 | R101: 75.67673435 | S101: 44.32326565
B102: 37.79 | C102: 9 | D102: 83.96285263 | E102: 60.81686768 | Q102: 112.6 | R102: 73.64697769 | S102: 46.35302231
B103: 19.7 | C103: 33 | D103: 96.76843196 | E103: 84.80192271 | Q103: 113.4 | R103: 71.2 | S103: 48.8
B104: 96.25 | C104: 9 | D104: 71.23651675 | E104: 68.17534059 | Q104: 114.2 | R104: 67.9598995 | S104: 52.0401005
B105: 36.46 | C105: 28 | D105: 84.1178125 | E105: 33.52613562 | Q105: 115 | R105: 60.00000477 | S105: 59.99999523
B106: 55.06 | C106: 21 | D106: 76.72276158 | E106: 39.07078376
B107: 266.3 | C107: 18 | D107: 61.65158054 | E107: 72.07558272
B108: 118.54 | C108: 36 | D108: 99.01469633 | E108: 33.18033632
B109: 248.2 | C109: 29 | D109: 46.00291565 | E109: 59.58878316
B110: 214.72 | C110: 7 | D110: 78.22684479 | E110: 66.21188157
B111: 203.51 | C111: 0 | D111: 75 | E111: 60
B112: 255.93 | C112: 18 | D112: 73.02754619 | E112: 42.10839789
B113: 190.17 | C113: 21 | D113: 72.82736108 | E113: 80.88730811
B114: 283.09 | C114: 11 | D114: 85.34563585 | E114: 63.73735453
B115: 76.66 | C115: 33 | D115: 85.03613211 | E115: 91.43685818
B116: 134.75 | C116: 3 | D116: 72.17022266 | E116: 60.99617278
B117: 160.13 | C117: 22 | D117: 53.09147921 | E117: 62.00417482
B118: 90.93 | C118: 34 | D118: 41.52634764 | E118: 65.95941256
B119: 306.98 | C119: 7 | D119: 79.3727305 | E119: 54.53381047
B120: 332.93 | C120: 16 | D120: 90.95032337 | E120: 58.74016497
B121: 159.69 | C121: 9 | D121: 67.24031721 | E121: 64.55931169
B122: 91.01 | C122: 36 | D122: 39.16640638 | E122: 63.45739333
B123: 159.8 | C123: 20 | D123: 56.74822775 | E123: 68.17757969
B124: 65.42 | C124: 4 | D124: 71.59712629 | E124: 62.10248674
B125: 270.48 | C125: 38 | D125: 111.2685735 | E125: 71.33977855
B126: 281.69 | C126: 11 | D126: 80.44139318 | E126: 50.44012342
B127: 324.07 | C127: 12 | D127: 64.38925762 | E127: 54.39534604
B128: 141.13 | C128: 23 | D128: 52.66838465 | E128: 65.50444872
B129: 197.92 | C129: 5 | D129: 70.00000028 | E129: 60.00168588
B130: 111.57 | C130: 15 | D130: 75.65170676 | E130: 45.01416408
B131: 307.6 | C131: 1 | D131: 75.96213135 | E131: 59.72741375
B132: 286.59 | C132: 30 | D132: 52.15298566 | E132: 40.55741951
B133: 15.21 | C133: 1 | D133: 74.1214428 | E133: 60.47763714
B134: 84.78 | C134: 21 | D134: 54.019413 | E134: 60.9027563
B135: =RANDBETWEEN(0,36000)% -> 263.86 | C135: =RANDBETWEEN(0,$B$1) -> 10 | D135: =$B$2+C135*COS(B135) -> 84.99429412 | E135: =$B$3+C135*SIN(B135) -> 59.66223524
B136: 358.3 | C136: 28 | D136: 102.6493004 | E136: 64.41771291
B137: 264.93 | C137: 5 | D137: 77.54739509 | E137: 64.3024154
B138: 118.03 | C138: 3 | D138: 75.6554954 | E138: 57.07248812
B139: 112.75 | C139: 2 | D139: 76.88056604 | E139: 59.31921268
B140: 70.99 | C140: 34 | D140: 64.81710577 | E140: 92.43930741
B141: 35.18 | C141: 31 | D141: 49.81453002 | E141: 41.92537409
B142: 158.42 | C142: 12 | D142: 77.74074254 | E142: 71.68282202
B143: 313.62 | C143: 25 | D143: 96.45215388 | E143: 47.16235638
B144: 54.21 | C144: 18 | D144: 62.49710019 | E144: 47.05096543
B145: 120.05 | C145: 40 | D145: 106.3657997 | E145: 84.8231064
B146: 159 | C146: 8 | D146: 72.26004177 | E146: 67.51615785
B147: 330.45 | C147: 21 | D147: 57.46624612 | E147: 48.44286043
B148: 256.66 | C148: 39 | D148: 97.66667883 | E148: 28.26324417
B149: 177.09 | C149: 20 | D149: 82.9719101 | E149: 78.34253661
B150: 34.9 | C150: 35 | D150: 42.03264435 | E150: 48.24612993
B151: 343.83 | C151: 38 | D151: 68.40650958 | E151: 22.57639937
B152: 243.19 | C152: 33 | D152: 65.7715149 | E152: 28.31664376
B153: 130.83 | C153: 14 | D153: 81.13869681 | E153: 47.41761543
B154: 281.31 | C154: 40 | D154: 80.48100183 | E154: 20.37729667
B155: 101.3 | C155: 2 | D155: 76.43716409 | E155: 61.39088438
B156: 153.97 | C156: 7 | D156: 68.00357474 | E156: 59.77631827
B157: 37.14 | C157: 33 | D157: 102.9749763 | E157: 42.49569473
B158: 97.74 | C158: 14 | D158: 61.85179811 | E158: 55.19117611
B159: 135.85 | C159: 5 | D159: 71.38104577 | E159: 56.54990286
B160: 184.96 | C160: 28 | D160: 49.14497509 | E160: 70.74791546
B161: 196.66 | C161: 2 | D161: 74.38900826 | E161: 61.9043868
B162: 87.01 | C162: 36 | D162: 95.80583598 | E162: 30.62114384
B163: 14.99 | C163: 1 | D163: 74.24685284 | E163: 60.65785208
B164: 19.78 | C164: 9 | D164: 80.37730147 | E164: 67.21696812
B165: 295.52 | C165: 19 | D165: 93.58143575 | E165: 63.96613733
B166: 259.9 | C166: 16 | D166: 64.46662282 | E166: 72.04358606
B167: 48.86 | C167: 16 | D167: 77.63299087 | E167: 44.21813195
B168: 32.06 | C168: 31 | D168: 99.78935013 | E168: 78.61419136
B169: 352.91 | C169: 17 | D169: 83.43476659 | E169: 74.75990219
B170: 347.71 | C170: 29 | D170: 59.4971535 | E170: 84.50840163
B171: 77.86 | C171: 36 | D171: 47.00322516 | E171: 82.63140735
B172: 116.21 | C172: 11 | D172: 64.0046023 | E172: 60.31816563
B173: 311.81 | C173: 18 | D173: 62.36057623 | E173: 47.18419075
B174: 142.46 | C174: 30 | D174: 61.08105399 | E174: 33.42439197
B175: 324.69 | C175: 25 | D175: 63.79301329 | E175: 37.65266349
B176: 314.46 | C176: 15 | D176: 89.32678695 | E176: 64.44332934
B177: 193.31 | C177: 34 | D177: 78.4637418 | E177: 26.1768941
B178: 300.03 | C178: 18 | D178: 75.142227 | E178: 42.00056191
B179: 141.22 | C179: 4 | D179: 71.04591909 | E179: 60.60435436
B180: 188.8 | C180: 36 | D180: 109.3445304 | E180: 70.79135001
B181: 147.9 | C181: 22 | D181: 53.65775433 | E181: 54.66066017
B182: 138.8 | C182: 33 | D182: 102.784099 | E182: 77.80572501
B183: 44.02 | C183: 11 | D183: 85.99218265 | E183: 60.4146331
B184: 230.28 | C184: 3 | D184: 73.23970006 | E184: 57.57073177
B185: 226.65 | C185: 9 | D185: 83.0830478 | E185: 63.95781989
B186: 81.49 | C186: 8 | D186: 82.85389728 | E186: 58.47806124
B187: 272.94 | C187: 34 | D187: 43.4072857 | E187: 72.56584272
B188: 84.83 | C188: 29 | D188: 46.00071016 | E188: 59.79704942
B189: 175.01 | C189: 34 | D189: 95.61982725 | E189: 32.96626692
B190: 237.29 | C190: 39 | D190: 78.88398244 | E190: 21.19388347
B191: 129.68 | C191: 24 | D191: 59.61057193 | E191: 41.58355344
B192: 86.65 | C192: 11 | D192: 77.78749221 | E192: 49.3590467
B193: 246.87 | C193: 27 | D193: 68.1899829 | E193: 86.12706771
B194: 173.14 | C194: 30 | D194: 46.84363036 | E194: 49.64534653
B195: 111.3 | C195: 2 | D195: 74.55078699 | E195: 58.05110091
B196: 269.22 | C196: 27 | D196: 90.55202604 | E196: 37.92887664
B197: 284.23 | C197: 28 | D197: 77.35300586 | E197: 87.90095632
B198: 54.63 | C198: 14 | D198: =$B$2+C198*COS(B198) -> 70.22743473 | E198: =$B$3+C198*SIN(B198) -> 46.83859351
B199: =RANDBETWEEN(0,36000)% -> 190.61 | C199: =RANDBETWEEN(0,$B$1) -> 33 | D199: 57.93047104 | E199: 88.242365
B200: 83.6 | C200: 25 | D200: 66.47936606 | E200: 83.50316568
B201: 243.47 | C201: 25 | D201: 74.91423384 | E201: 35.00014712
... 308 more rows
